[Event "Paul Kerese Mälestusfestival 2022 Välkturniir"]
[Site "Paul Kerese Mälestusfestival 2022 Kiirturniir"]
[Date "????.??.??"]
[Round "4.4"]
[White "Olde, Karl Erik"]
[Black "Petrovskis, Olegs"]
[Result "1/2-1/2"]
[TimeControl "3 min + 2 sek iga käigu eest"]
[WhiteElo "1768"]
[BlackElo "1984"]

1. d4 {[%clk 00:03:03]} d5 {[%clk 00:03:03]} {[%emt 00:00:02]} 2. c4 {[%clk
00:03:05]} c6 {[%clk 00:03:05]} 3. e3 {[%clk 00:03:05]} {[%emt 00:00:01]} Nf6
{[%clk 00:03:05]} 4. Nf3 {[%clk 00:03:07]} e6 {[%clk 00:03:05]} {[%emt
00:00:03]} 5. Nc3 {[%clk 00:03:07]} {[%emt 00:00:01]} Nbd7 {[%clk 00:03:06]} 6.
Bd3 {[%clk 00:03:03]} {[%emt 00:00:07]} Bd6 {[%clk 00:03:07]} 7. O-O {[%clk
00:03:02]} {[%emt 00:00:02]} O-O {[%clk 00:03:08]} {[%emt 00:00:01]} 8. e4
{[%clk 00:03:00]} {[%emt 00:00:04]} dxc4 {[%clk 00:03:09]} {[%emt 00:00:01]} 9.
Bxc4 {[%clk 00:03:00]} {[%emt 00:00:02]} e5 {[%clk 00:03:10]} {[%emt 00:00:01]}
10. d5 {[%clk 00:02:52]} {[%emt 00:00:09]} Nb6 {[%clk 00:03:04]} {[%emt
00:00:08]} 11. Bb3 {[%clk 00:02:47]} {[%emt 00:00:06]} h6 {[%clk 00:03:01]}
{[%emt 00:00:05]} 12. dxc6 {[%clk 00:02:46]} {[%emt 00:00:03]} bxc6 {[%clk
00:03:02]} {[%emt 00:00:01]} 13. Qe2 {[%clk 00:02:44]} {[%emt 00:00:05]} Qe7
{[%clk 00:02:44]} {[%emt 00:00:19]} 14. h3 {[%clk 00:02:32]} {[%emt 00:00:13]}
Be6 {[%clk 00:02:36]} {[%emt 00:00:10]} 15. Bxe6 {[%clk 00:02:26]} {[%emt
00:00:09]} Qxe6 {[%clk 00:02:36]} {[%emt 00:00:02]} 16. Be3 {[%clk 00:02:24]}
{[%emt 00:00:03]} Nc4 {[%clk 00:01:55]} {[%emt 00:00:44]} 17. Rac1 {[%clk
00:02:18]} {[%emt 00:00:08]} Bb4 {[%clk 00:01:30]} {[%emt 00:00:26]} 18. a3
{[%clk 00:02:04]} {[%emt 00:00:17]} Ba5 {[%clk 00:01:28]} {[%emt 00:00:03]} 19.
b4 {[%clk 00:01:58]} {[%emt 00:00:08]} Nxe3 {[%clk 00:01:28]} {[%emt 00:00:02]}
20. Qxe3 {[%clk 00:01:56]} {[%emt 00:00:04]} Bb6 {[%clk 00:01:30]} 21. Qe2
{[%clk 00:01:55]} {[%emt 00:00:04]} Rad8 {[%clk 00:01:17]} {[%emt 00:00:15]} 22.
Na4 {[%clk 00:01:52]} {[%emt 00:00:05]} Bd4 {[%clk 00:01:04]} {[%emt 00:00:14]}
23. Nxd4 {[%clk 00:01:41]} {[%emt 00:00:13]} Rxd4 {[%clk 00:01:04]} {[%emt
00:00:02]} 24. Nc5 {[%clk 00:01:42]} {[%emt 00:00:02]} Qe7 {[%clk 00:00:54]}
{[%emt 00:00:12]} 25. Rfd1 {[%clk 00:01:28]} {[%emt 00:00:16]} Rfd8 {[%clk
00:00:56]} 26. Rxd4 {[%clk 00:01:29]} {[%emt 00:00:01]} Rxd4 {[%clk 00:00:57]}
27. Rd1 {[%clk 00:01:30]} {[%emt 00:00:01]} Qd6 {[%clk 00:00:57]} {[%emt
00:00:01]} 28. Rxd4 {[%clk 00:01:15]} {[%emt 00:00:18]} Qxd4 {[%clk 00:00:57]}
29. Qa6 {[%clk 00:01:06]} {[%emt 00:00:12]} Qa1+ {[%clk 00:00:40]} {[%emt
00:00:19]} 30. Kh2 {[%clk 00:01:05]} {[%emt 00:00:03]} Qc1 {[%clk 00:00:41]}
{[%emt 00:00:01]} 31. Qxc6 {[%clk 00:00:53]} {[%emt 00:00:14]} Qf4+ {[%clk
00:00:42]} 32. Kg1 {[%clk 00:00:55]} {[%emt 00:00:01]} Qc1+ {[%clk 00:00:43]}
1/2-1/2

[Event "Paul Kerese Mälestusfestival 2022 Välkturniir"]
[Site "Paul Kerese Mälestusfestival 2022 Kiirturniir"]
[Date "????.??.??"]
[Round "4.5"]
[White "Olde, Margareth"]
[Black "Kraini, Juri"]
[Result "1-0"]
[TimeControl "3 min + 2 sek iga käigu eest"]
[WhiteTitle "WIM"]
[WhiteElo "1971"]
[BlackElo "1692"]

1. d4 {[%clk 00:03:03]} Nf6 {[%clk 00:03:03]} {[%emt 00:00:01]} 2. c4 {[%clk
00:03:04]} {[%emt 00:00:01]} e6 3. g3 {[%emt 00:00:01]} d5 {[%clk 00:03:03]}
{[%emt 00:00:02]} 4. Bg2 {[%clk 00:03:08]} Be7 {[%clk 00:03:03]} {[%emt
00:00:02]} 5. Nf3 {[%clk 00:03:09]} O-O {[%clk 00:03:03]} {[%emt 00:00:02]} 6.
O-O {[%clk 00:03:10]} {[%emt 00:00:02]} c6 {[%clk 00:02:58]} {[%emt 00:00:07]}
7. Qc2 {[%clk 00:03:11]} Nbd7 {[%clk 00:02:57]} {[%emt 00:00:03]} 8. Bf4 {[%clk
00:03:12]} Ne4 {[%clk 00:02:45]} {[%emt 00:00:14]} 9. Rd1 {[%clk 00:02:54]}
{[%emt 00:00:20]} f5 {[%clk 00:02:44]} {[%emt 00:00:03]} 10. Ne5 {[%clk
00:02:50]} {[%emt 00:00:06]} Nxe5 {[%clk 00:02:37]} {[%emt 00:00:09]} 11. dxe5
{[%clk 00:02:50]} {[%emt 00:00:02]} Bd7 {[%clk 00:01:58]} {[%emt 00:00:41]} 12.
Nc3 {[%clk 00:02:38]} {[%emt 00:00:14]} Qb6 {[%clk 00:01:52]} {[%emt 00:00:09]}
13. Nxe4 {[%clk 00:02:37]} {[%emt 00:00:03]} fxe4 {[%clk 00:01:50]} {[%emt
00:00:04]} 14. cxd5 {[%clk 00:02:36]} {[%emt 00:00:03]} cxd5 {[%clk 00:01:25]}
{[%emt 00:00:27]} 15. Be3 {[%emt 00:00:06]} Qc6 {[%clk 00:01:17]} {[%emt
00:00:08]} 16. Qb3 {[%clk 00:02:35]} {[%emt 00:00:01]} b6 {[%clk 00:01:11]}
{[%emt 00:00:07]} 17. Rac1 {[%clk 00:02:33]} {[%emt 00:00:04]} Qb7 {[%clk
00:01:12]} {[%emt 00:00:01]} 18. Rc2 {[%clk 00:02:26]} {[%emt 00:00:09]} Rac8
{[%clk 00:01:13]} {[%emt 00:00:01]} 19. Rcd2 {[%clk 00:01:56]} {[%emt
00:00:33]} Qa6 {[%clk 00:01:11]} {[%emt 00:00:04]} 20. a4 {[%clk 00:01:29]}
{[%emt 00:00:29]} Rc4 {[%clk 00:00:43]} {[%emt 00:00:29]} 21. Rd4 {[%clk
00:01:12]} {[%emt 00:00:20]} Rfc8 {[%clk 00:00:22]} {[%emt 00:00:23]} 22. Bxe4
{[%clk 00:01:04]} {[%emt 00:00:10]} Qxa4 {[%clk 00:00:15]} {[%emt 00:00:09]} 23.
Bxh7+ {[%clk 00:00:38]} {[%emt 00:00:27]} Kxh7 {[%clk 00:00:16]} {[%emt
00:00:02]} 24. Qd3+ {[%clk 00:00:40]} Kg8 {[%clk 00:00:17]} {[%emt 00:00:01]}
25. b3 {[%clk 00:00:42]} Rxd4 {[%clk 00:00:13]} {[%emt 00:00:05]} 26. Bxd4
{[%clk 00:00:38]} {[%emt 00:00:06]} Qb5 {[%clk 00:00:13]} {[%emt 00:00:02]} 27.
Qf3 {[%clk 00:00:36]} {[%emt 00:00:04]} Rc2 {[%clk 00:00:12]} {[%emt 00:00:03]}
28. e4 {[%clk 00:00:33]} {[%emt 00:00:06]} Qe2 {[%clk 00:00:11]} {[%emt
00:00:02]} 29. Qxe2 {[%clk 00:00:31]} {[%emt 00:00:04]} Rxe2 {[%clk 00:00:12]}
30. Be3 {[%clk 00:00:29]} {[%emt 00:00:04]} Bb5 {[%clk 00:00:11]} {[%emt
00:00:03]} 31. exd5 {[%clk 00:00:30]} {[%emt 00:00:02]} exd5 {[%clk 00:00:12]}
{[%emt 00:00:01]} 32. Rxd5 {[%clk 00:00:31]} Bc6 {[%clk 00:00:11]} {[%emt
00:00:02]} 33. Rd1 {[%clk 00:00:32]} Rb2 {[%clk 00:00:12]} {[%emt 00:00:02]} 34.
Rc1 {[%clk 00:00:27]} {[%emt 00:00:06]} Bf3 {[%clk 00:00:12]} {[%emt 00:00:02]}
35. h3 {[%emt 00:00:05]} Rxb3 {[%clk 00:00:12]} {[%emt 00:00:01]} 36. g4 {[%clk
00:00:26]} Bh4 {[%clk 00:00:12]} {[%emt 00:00:02]} 37. Kh2 {[%clk 00:00:18]}
{[%emt 00:00:10]} Rd3 {[%clk 00:00:13]} 38. e6 {[%clk 00:00:17]} {[%emt
00:00:04]} Rd1 {[%clk 00:00:14]} {[%emt 00:00:01]} 39. Rxd1 {[%clk 00:00:09]}
{[%emt 00:00:11]} Bxd1 {[%clk 00:00:15]} 40. f4 {[%clk 00:00:08]} {[%emt
00:00:02]} Kf8 {[%clk 00:00:15]} {[%emt 00:00:02]} 41. Bd2 {[%clk 00:00:09]}
{[%emt 00:00:01]} Ke7 {[%emt 00:00:01]} 42. f5 Bf6 {[%clk 00:00:17]} {[%emt
00:00:01]} 43. Bb4+ {[%clk 00:00:12]} Ke8 {[%clk 00:00:18]} 44. Kg3 {[%emt
00:00:03]} Bb3 {[%clk 00:00:18]} 45. h4 {[%clk 00:00:14]} Bc2 {[%clk 00:00:17]}
{[%emt 00:00:04]} 46. Kf4 {[%clk 00:00:12]} {[%emt 00:00:04]} Bxh4 {[%clk
00:00:14]} {[%emt 00:00:05]} 47. g5 {[%clk 00:00:13]} {[%emt 00:00:01]} Be1
{[%clk 00:00:14]} {[%emt 00:00:02]} 48. Bxe1 {[%clk 00:00:13]} {[%emt
00:00:02]} Ke7 {[%clk 00:00:12]} {[%emt 00:00:05]} 49. Ke5 {[%clk 00:00:14]} g6
{[%clk 00:00:13]} 50. f6+ {[%clk 00:00:16]} Ke8 {[%clk 00:00:14]} 51. f7+
{[%clk 00:00:13]} {[%emt 00:00:05]} 1-0

[Event "Paul Kerese Mälestusfestival 2022 Välkturniir"]
[Site "Paul Kerese Mälestusfestival 2022 Kiirturniir"]
[Date "????.??.??"]
[Round "4.6"]
[White "Paikens, Reinis"]
[Black "Krilovs, Nikolajs"]
[Result "1-0"]
[TimeControl "3 min + 2 sek iga käigu eest"]
[WhiteElo "1678"]
[BlackElo "1971"]

1. c4 {[%clk 00:03:02]} {[%emt 00:00:01]} e5 {[%clk 00:03:02]} {[%emt
00:00:02]} 2. Nc3 {[%clk 00:03:04]} Nf6 {[%clk 00:02:58]} {[%emt 00:00:06]} 3.
g3 {[%clk 00:03:05]} {[%emt 00:00:01]} c6 {[%clk 00:02:55]} {[%emt 00:00:05]} 4.
Bg2 {[%clk 00:03:05]} {[%emt 00:00:01]} d5 {[%clk 00:02:56]} {[%emt 00:00:01]}
5. cxd5 {[%clk 00:03:06]} {[%emt 00:00:02]} cxd5 {[%clk 00:02:56]} {[%emt
00:00:02]} 6. d3 {[%clk 00:03:00]} {[%emt 00:00:08]} Nc6 {[%clk 00:02:56]}
{[%emt 00:00:02]} 7. Nf3 {[%clk 00:03:01]} {[%emt 00:00:01]} Be7 {[%clk
00:02:50]} {[%emt 00:00:08]} 8. O-O {[%clk 00:03:00]} {[%emt 00:00:02]} O-O
{[%clk 00:02:49]} {[%emt 00:00:03]} 9. Rb1 {[%clk 00:02:54]} {[%emt 00:00:09]}
h6 {[%clk 00:02:48]} {[%emt 00:00:02]} 10. a3 {[%clk 00:02:56]} {[%emt
00:00:01]} a5 {[%clk 00:02:48]} {[%emt 00:00:01]} 11. Bd2 {[%clk 00:02:36]}
{[%emt 00:00:22]} Be6 {[%clk 00:02:48]} {[%emt 00:00:02]} 12. e3 {[%clk
00:02:24]} {[%emt 00:00:13]} Qd7 {[%clk 00:02:47]} {[%emt 00:00:03]} 13. d4
{[%clk 00:02:24]} {[%emt 00:00:02]} e4 {[%clk 00:02:34]} {[%emt 00:00:15]} 14.
Ne1 {[%clk 00:02:06]} {[%emt 00:00:20]} Bh3 {[%clk 00:02:23]} {[%emt 00:00:13]}
15. f3 {[%clk 00:02:06]} {[%emt 00:00:02]} exf3 {[%clk 00:02:19]} {[%emt
00:00:06]} 16. Qxf3 {[%clk 00:01:52]} {[%emt 00:00:16]} Bg4 {[%clk 00:02:11]}
{[%emt 00:00:10]} 17. Qf2 {[%clk 00:01:53]} {[%emt 00:00:01]} Rad8 {[%clk
00:02:00]} {[%emt 00:00:13]} 18. Nd3 {[%clk 00:01:54]} {[%emt 00:00:01]} Rfe8
{[%clk 00:01:51]} {[%emt 00:00:11]} 19. Nf4 {[%clk 00:01:54]} {[%emt 00:00:01]}
Bf5 {[%clk 00:01:37]} {[%emt 00:00:17]} 20. Nfxd5 {[%clk 00:01:48]} {[%emt
00:00:08]} Bxb1 {[%clk 00:01:37]} {[%emt 00:00:02]} 21. Rxb1 {[%clk 00:01:29]}
{[%emt 00:00:20]} Nxd5 {[%clk 00:01:32]} {[%emt 00:00:07]} 22. Bxd5 {[%clk
00:01:30]} {[%emt 00:00:01]} Bf6 {[%clk 00:01:31]} {[%emt 00:00:03]} 23. Rf1
{[%clk 00:01:25]} {[%emt 00:00:06]} Qe7 {[%clk 00:01:24]} {[%emt 00:00:09]} 24.
Ba2 {[%clk 00:01:21]} {[%emt 00:00:06]} Nxd4 {[%clk 00:01:24]} {[%emt
00:00:01]} 25. Nd5 {[%clk 00:01:12]} {[%emt 00:00:12]} Rxd5 {[%clk 00:01:13]}
{[%emt 00:00:12]} 26. Bxd5 {[%clk 00:01:13]} {[%emt 00:00:01]} Nc6 {[%clk
00:01:06]} {[%emt 00:00:09]} 27. e4 {[%clk 00:01:03]} {[%emt 00:00:12]} Bd4
{[%clk 00:00:52]} {[%emt 00:00:17]} 28. Be3 {[%clk 00:01:04]} {[%emt 00:00:01]}
Bxe3 {[%clk 00:00:53]} 29. Qxe3 {[%clk 00:01:03]} {[%emt 00:00:02]} Ne5 {[%clk
00:00:53]} {[%emt 00:00:01]} 30. Rf5 {[%clk 00:00:55]} {[%emt 00:00:10]} Kh8
{[%clk 00:00:47]} {[%emt 00:00:09]} 31. Qb3 {[%clk 00:00:53]} {[%emt 00:00:03]}
Qc5+ {[%clk 00:00:44]} {[%emt 00:00:05]} 32. Kg2 {[%clk 00:00:48]} {[%emt
00:00:07]} f6 {[%clk 00:00:39]} {[%emt 00:00:07]} 33. Rf2 {[%clk 00:00:40]}
{[%emt 00:00:10]} Ng4 {[%clk 00:00:37]} {[%emt 00:00:04]} 34. Re2 {[%clk
00:00:27]} {[%emt 00:00:15]} b5 {[%clk 00:00:38]} 35. h3 {[%clk 00:00:22]}
{[%emt 00:00:06]} Ne5 {[%clk 00:00:39]} {[%emt 00:00:02]} 36. Rc2 {[%clk
00:00:22]} {[%emt 00:00:02]} Qd4 {[%clk 00:00:38]} {[%emt 00:00:03]} 37. Qxb5
{[%clk 00:00:17]} {[%emt 00:00:08]} f5 {[%clk 00:00:38]} {[%emt 00:00:01]} 38.
Qxe8+ {[%clk 00:00:17]} {[%emt 00:00:01]} Kh7 {[%clk 00:00:37]} {[%emt
00:00:03]} 39. Bg8+ {[%clk 00:00:18]} 1-0

[Event "Paul Kerese Mälestusfestival 2022 Välkturniir"]
[Site "Paul Kerese Mälestusfestival 2022 Kiirturniir"]
[Date "????.??.??"]
[Round "4.7"]
[White "Heinmets, Tõnu"]
[Black "Kokk, Karl Mattias"]
[Result "0-1"]
[TimeControl "3 min + 2 sek iga käigu eest"]
[WhiteElo "1939"]
[BlackElo "1338"]

1. b3 {[%clk 00:03:03]} d5 {[%clk 00:02:53]} {[%emt 00:00:12]} 2. Bb2 {[%clk
00:03:01]} {[%emt 00:00:04]} Nd7 {[%clk 00:02:45]} {[%emt 00:00:09]} 3. e3
{[%clk 00:03:02]} {[%emt 00:00:02]} e5 {[%clk 00:02:46]} {[%emt 00:00:02]} 4.
c4 {[%clk 00:03:02]} {[%emt 00:00:01]} c6 {[%clk 00:02:42]} {[%emt 00:00:06]} 5.
cxd5 {[%clk 00:02:47]} {[%emt 00:00:17]} cxd5 {[%clk 00:02:41]} {[%emt
00:00:03]} 6. Bb5 {[%clk 00:02:48]} {[%emt 00:00:01]} Bd6 {[%clk 00:02:37]}
{[%emt 00:00:05]} 7. Nf3 {[%clk 00:02:44]} {[%emt 00:00:07]} Qe7 {[%clk
00:02:36]} {[%emt 00:00:03]} 8. O-O {[%clk 00:02:26]} {[%emt 00:00:19]} a6
{[%clk 00:02:37]} {[%emt 00:00:02]} 9. Bxd7+ {[%clk 00:02:27]} {[%emt
00:00:01]} Bxd7 {[%clk 00:02:38]} {[%emt 00:00:02]} 10. d4 {[%clk 00:02:27]}
{[%emt 00:00:01]} e4 {[%clk 00:02:38]} {[%emt 00:00:02]} 11. Ne5 {[%clk
00:02:28]} Nf6 {[%clk 00:02:28]} {[%emt 00:00:13]} 12. Nc3 {[%clk 00:02:10]}
{[%emt 00:00:19]} O-O {[%clk 00:02:24]} {[%emt 00:00:06]} 13. Nxd7 {[%clk
00:02:08]} {[%emt 00:00:04]} Qxd7 {[%clk 00:02:16]} {[%emt 00:00:10]} 14. Na4
{[%clk 00:02:01]} {[%emt 00:00:09]} Ng4 {[%clk 00:02:10]} {[%emt 00:00:08]} 15.
h3 {[%clk 00:01:59]} {[%emt 00:00:04]} Nh2 {[%clk 00:01:21]} {[%emt 00:00:51]}
16. Re1 {[%clk 00:01:52]} {[%emt 00:00:09]} Nf3+ {[%clk 00:01:07]} {[%emt
00:00:17]} 17. gxf3 {[%clk 00:01:45]} {[%emt 00:00:09]} Qxh3 {[%clk 00:00:58]}
{[%emt 00:00:10]} 18. f4 {[%clk 00:01:44]} {[%emt 00:00:03]} f5 {[%clk
00:00:54]} {[%emt 00:00:07]} 19. Qe2 {[%clk 00:01:41]} {[%emt 00:00:05]} Rf6
{[%clk 00:00:51]} {[%emt 00:00:04]} 0-1

[Event "Paul Kerese Mälestusfestival 2022 Välkturniir"]
[Site "Paul Kerese Mälestusfestival 2022 Kiirturniir"]
[Date "????.??.??"]
[Round "4.8"]
[White "Zarovs, Aleksandrs"]
[Black "Mikko, Rondo"]
[Result "0-1"]
[TimeControl "3 min + 2 sek iga käigu eest"]
[WhiteElo "1527"]
[BlackElo "1933"]

1. e4 {[%emt 00:00:03]} c6 {[%clk 00:03:01]} {[%emt 00:00:03]} 2. d4 {[%clk
00:03:03]} {[%emt 00:00:01]} d5 {[%clk 00:03:02]} 3. Nc3 {[%clk 00:03:04]} dxe4
{[%clk 00:03:03]} 4. Nxe4 {[%clk 00:03:05]} Nf6 {[%clk 00:03:04]} {[%emt
00:00:01]} 5. Nxf6+ {[%clk 00:03:05]} {[%emt 00:00:02]} exf6 {[%clk 00:03:05]}
6. c3 {[%clk 00:02:55]} {[%emt 00:00:11]} Bf5 {[%clk 00:03:06]} {[%emt
00:00:02]} 7. Bd3 {[%clk 00:02:55]} {[%emt 00:00:03]} Bxd3 {[%clk 00:03:06]}
{[%emt 00:00:01]} 8. Qxd3 {[%clk 00:02:55]} {[%emt 00:00:02]} Bd6 {[%clk
00:03:06]} {[%emt 00:00:01]} 9. Nf3 {[%clk 00:02:45]} {[%emt 00:00:12]} O-O
{[%clk 00:03:06]} {[%emt 00:00:02]} 10. O-O {[%clk 00:02:45]} {[%emt 00:00:02]}
Re8 {[%clk 00:02:56]} {[%emt 00:00:12]} 11. Be3 {[%clk 00:02:45]} {[%emt
00:00:02]} Nd7 {[%clk 00:02:56]} {[%emt 00:00:02]} 12. b3 {[%clk 00:02:45]}
{[%emt 00:00:03]} g6 {[%clk 00:02:43]} {[%emt 00:00:15]} 13. c4 {[%clk
00:02:45]} {[%emt 00:00:03]} f5 {[%clk 00:02:40]} {[%emt 00:00:05]} 14. a3
{[%clk 00:02:24]} {[%emt 00:00:22]} a5 {[%clk 00:02:35]} {[%emt 00:00:07]} 15.
Bd2 {[%clk 00:02:19]} {[%emt 00:00:07]} Qc7 {[%clk 00:02:17]} {[%emt 00:00:20]}
16. b4 {[%clk 00:02:06]} {[%emt 00:00:15]} axb4 {[%clk 00:02:16]} {[%emt
00:00:03]} 17. axb4 {[%clk 00:02:08]} Nf6 {[%clk 00:02:09]} {[%emt 00:00:08]}
18. c5 {[%clk 00:01:44]} {[%emt 00:00:25]} Bf8 {[%clk 00:01:54]} {[%emt
00:00:18]} 19. b5 {[%clk 00:01:42]} {[%emt 00:00:04]} Bg7 {[%clk 00:01:50]}
{[%emt 00:00:06]} 20. Rxa8 {[%clk 00:01:34]} {[%emt 00:00:11]} Rxa8 {[%clk
00:01:51]} 21. bxc6 {[%clk 00:01:34]} {[%emt 00:00:01]} bxc6 {[%clk 00:01:52]}
{[%emt 00:00:01]} 22. Qc4 {[%clk 00:01:19]} {[%emt 00:00:17]} Nd5 {[%clk
00:01:18]} {[%emt 00:00:36]} 23. Re1 {[%clk 00:01:16]} {[%emt 00:00:06]} Qd7
{[%clk 00:01:09]} {[%emt 00:00:11]} 24. h3 {[%clk 00:01:13]} {[%emt 00:00:05]}
Qb7 {[%clk 00:00:53]} {[%emt 00:00:18]} 25. Ne5 {[%clk 00:01:08]} {[%emt
00:00:06]} Bxe5 {[%clk 00:00:53]} {[%emt 00:00:02]} 26. Rxe5 {[%clk 00:01:09]}
{[%emt 00:00:01]} Qb2 {[%emt 00:00:19]} 27. Bh6 {[%clk 00:01:01]} {[%emt
00:00:03]} Qb7 {[%clk 00:00:19]} {[%emt 00:00:26]} 28. Qe2 {[%clk 00:00:55]}
{[%emt 00:00:07]} Qd7 {[%clk 00:00:18]} {[%emt 00:00:05]} 29. Bg5 {[%clk
00:00:48]} {[%emt 00:00:09]} f6 {[%clk 00:00:16]} {[%emt 00:00:04]} 0-1

[Event "Paul Kerese Mälestusfestival 2022 Välkturniir"]
[Site "Paul Kerese Mälestusfestival 2022 Kiirturniir"]
[Date "????.??.??"]
[Round "5.1"]
[White "Teelem, Lauri"]
[Black "Maiorov, Nikita"]
[Result "1/2-1/2"]
[TimeControl "3 min + 2 sek iga käigu eest"]
[BlackTitle "GM"]
[WhiteElo "2012"]
[BlackElo "2417"]

1. d4 {[%clk 00:03:02]} {[%emt 00:00:02]} Nf6 {[%clk 00:03:02]} {[%emt
00:00:02]} 2. c4 {[%clk 00:03:03]} {[%emt 00:00:01]} e6 {[%clk 00:03:04]} 3.
Nc3 {[%clk 00:03:04]} {[%emt 00:00:01]} d5 {[%clk 00:02:53]} {[%emt 00:00:12]}
4. Bg5 {[%clk 00:03:04]} {[%emt 00:00:02]} Be7 {[%clk 00:02:51]} {[%emt
00:00:05]} 5. e3 {[%clk 00:03:05]} {[%emt 00:00:01]} O-O {[%clk 00:02:50]}
{[%emt 00:00:03]} 6. cxd5 {[%clk 00:03:06]} {[%emt 00:00:02]} exd5 {[%clk
00:02:51]} {[%emt 00:00:01]} 7. Bd3 {[%clk 00:03:06]} c6 {[%clk 00:02:52]}
{[%emt 00:00:01]} 8. Nge2 {[%clk 00:02:59]} {[%emt 00:00:09]} Nbd7 {[%clk
00:02:47]} {[%emt 00:00:07]} 9. O-O {[%clk 00:02:58]} {[%emt 00:00:03]} Re8
{[%clk 00:02:47]} {[%emt 00:00:01]} 10. Ng3 {[%clk 00:02:56]} {[%emt 00:00:05]}
Nf8 {[%clk 00:02:47]} {[%emt 00:00:02]} 11. Nf5 {[%clk 00:02:47]} {[%emt
00:00:11]} Bxf5 {[%clk 00:02:45]} {[%emt 00:00:04]} 12. Bxf5 {[%clk 00:02:47]}
{[%emt 00:00:02]} N6d7 {[%clk 00:02:28]} {[%emt 00:00:19]} 13. Bf4 {[%clk
00:02:44]} {[%emt 00:00:05]} Nb6 {[%clk 00:02:23]} {[%emt 00:00:07]} 14. Re1
{[%clk 00:02:37]} {[%emt 00:00:09]} Bd6 {[%clk 00:02:23]} {[%emt 00:00:02]} 15.
Bg3 {[%clk 00:02:36]} {[%emt 00:00:04]} Bxg3 {[%clk 00:02:23]} {[%emt
00:00:02]} 16. hxg3 {[%clk 00:02:37]} {[%emt 00:00:01]} Qf6 {[%clk 00:02:22]}
{[%emt 00:00:02]} 17. Qc2 {[%clk 00:02:35]} {[%emt 00:00:04]} h5 {[%clk
00:02:11]} {[%emt 00:00:14]} 18. a4 {[%clk 00:02:23]} {[%emt 00:00:15]} a5
{[%clk 00:02:09]} {[%emt 00:00:03]} 19. Rab1 {[%clk 00:02:13]} {[%emt
00:00:12]} Nc4 {[%clk 00:01:57]} {[%emt 00:00:14]} 20. Bd3 {[%clk 00:02:08]}
{[%emt 00:00:07]} Nd6 {[%clk 00:01:58]} {[%emt 00:00:01]} 21. b4 {[%clk
00:01:54]} {[%emt 00:00:16]} axb4 {[%clk 00:01:58]} {[%emt 00:00:02]} 22. Rxb4
{[%clk 00:01:56]} h4 {[%clk 00:01:58]} {[%emt 00:00:02]} 23. gxh4 {[%clk
00:01:51]} {[%emt 00:00:07]} Qxh4 {[%clk 00:01:59]} {[%emt 00:00:01]} 24. g3
{[%clk 00:01:35]} {[%emt 00:00:17]} Qh6 {[%clk 00:01:21]} {[%emt 00:00:40]} 25.
Kg2 {[%clk 00:01:33]} {[%emt 00:00:05]} Qg5 {[%clk 00:01:11]} {[%emt 00:00:12]}
26. Rh1 {[%clk 00:01:29]} {[%emt 00:00:05]} g6 {[%clk 00:01:11]} {[%emt
00:00:02]} 27. Rh4 {[%clk 00:01:22]} {[%emt 00:00:09]} Kg7 {[%clk 00:01:02]}
{[%emt 00:00:11]} 28. Rb1 {[%clk 00:01:22]} {[%emt 00:00:02]} Ne6 {[%clk
00:00:43]} {[%emt 00:00:22]} 29. Rbh1 {[%clk 00:01:14]} {[%emt 00:00:09]} Rh8
{[%clk 00:00:41]} {[%emt 00:00:04]} 30. Rxh8 {[%clk 00:01:06]} {[%emt
00:00:11]} Rxh8 {[%clk 00:00:42]} 31. Rxh8 {[%clk 00:01:06]} {[%emt 00:00:02]}
Kxh8 {[%clk 00:00:43]} {[%emt 00:00:01]} 32. Qb2 {[%clk 00:01:01]} {[%emt
00:00:06]} Qf6 {[%clk 00:00:39]} {[%emt 00:00:06]} 33. Qb4 {[%clk 00:00:59]}
{[%emt 00:00:05]} Ng5 {[%clk 00:00:37]} {[%emt 00:00:04]} 34. f4 {[%clk
00:00:48]} {[%emt 00:00:13]} Nh7 {[%clk 00:00:38]} {[%emt 00:00:01]} 35. g4
{[%clk 00:00:17]} {[%emt 00:00:34]} Qe6 {[%clk 00:00:38]} {[%emt 00:00:01]} 36.
Kf3 {[%clk 00:00:12]} {[%emt 00:00:07]} Nf6 {[%clk 00:00:24]} {[%emt 00:00:17]}
37. g5 {[%clk 00:00:12]} {[%emt 00:00:02]} Qh3+ {[%clk 00:00:23]} {[%emt
00:00:02]} 38. Ke2 {[%clk 00:00:13]} {[%emt 00:00:02]} Ng4 {[%clk 00:00:20]}
{[%emt 00:00:05]} 39. Nd1 {[%clk 00:00:11]} {[%emt 00:00:04]} Qg2+ {[%clk
00:00:20]} {[%emt 00:00:02]} 40. Ke1 {[%clk 00:00:11]} {[%emt 00:00:01]} Qg1+
{[%clk 00:00:18]} {[%emt 00:00:05]} 41. Kd2 {[%clk 00:00:12]} {[%emt 00:00:02]}
Qg2+ {[%clk 00:00:09]} {[%emt 00:00:11]} 42. Kc1 {[%clk 00:00:12]} {[%emt
00:00:01]} Nf5 {[%clk 00:00:04]} {[%emt 00:00:07]} 43. Qf8+ {[%clk 00:00:12]}
{[%emt 00:00:02]} Kh7 {[%emt 00:00:02]} 44. Qxf7+ {[%clk 00:00:12]} {[%emt
00:00:01]} Kh8 {[%clk 00:00:06]} {[%emt 00:00:01]} 45. Bxf5 {[%clk 00:00:11]}
{[%emt 00:00:04]} gxf5 {[%clk 00:00:07]} 46. Qxf5 {[%clk 00:00:10]} {[%emt
00:00:02]} Qg1 {[%clk 00:00:06]} {[%emt 00:00:03]} 47. Qe6 {[%clk 00:00:07]}
{[%emt 00:00:06]} Nf2 {[%clk 00:00:06]} {[%emt 00:00:02]} 48. Qf6+ {[%clk
00:00:05]} {[%emt 00:00:04]} Kg8 {[%clk 00:00:07]} {[%emt 00:00:01]} 49. Qe6+
{[%clk 00:00:05]} {[%emt 00:00:02]} Kf8 {[%clk 00:00:08]} {[%emt 00:00:01]} 50.
Qf6+ {[%clk 00:00:04]} {[%emt 00:00:02]} Kg8 {[%clk 00:00:10]} 51. Qe6+ {[%clk
00:00:04]} {[%emt 00:00:02]} Kf8 {[%clk 00:00:11]} {[%emt 00:00:01]} 52. Qf6+
{[%clk 00:00:04]} {[%emt 00:00:02]} Ke8 {[%clk 00:00:12]} 53. Qg6+ {[%clk
00:00:04]} {[%emt 00:00:02]} Kf8 {[%clk 00:00:13]} 54. Qc2 {[%clk 00:00:04]}
{[%emt 00:00:02]} Nxd1 {[%clk 00:00:14]} {[%emt 00:00:02]} 55. Qxd1 {[%clk
00:00:05]} {[%emt 00:01:35]} Qxe3+ {[%clk 00:01:16]} {[%emt 00:00:01]} 56. Kc2
{[%clk 00:00:06]} Qxf4 {[%clk 00:01:14]} {[%emt 00:00:04]} 57. g6 {[%clk
00:00:06]} {[%emt 00:00:02]} Qe4+ {[%clk 00:01:11]} {[%emt 00:00:04]} 58. Qd3
{[%clk 00:00:07]} {[%emt 00:00:01]} Ke8 {[%emt 00:00:12]} 1/2-1/2